bitfinex/quotes_SOLUSD_20250929
["timestamp","ask_amount","ask_price","bid_price","bid_amount"]
[1759108125968,0.72,210.06,209.99,36.5]
[1759108126143,0.72,210.05,210.0,4.76190476]
[1759108126337,0.72,210.04,210.0,4.76190476]
[1759108126538,7.13744415,210.07,210.0,4.76190476]
[1759108126757,0.72,210.06,210.0,4.76190476]
[1759108126956,0.72,210.05,210.0,4.76190476]
[1759108127159,0.72,210.04,210.0,4.76190476]
[1759108127465,7.13744415,210.07,210.0,4.76190476]
[1759108127678,0.72,210.03,209.99,36.5]
[1759108127882,0.72,210.02,209.99,36.5]
[1759108128161,0.72,210.01,209.97,36.52]
[1759108128369,0.72,210.0,209.97,36.52]
[1759108128673,2.24334111,209.99,209.95,36.52]
[1759108128847,0.72,209.98,209.95,36.52]
[1759108129041,27.52334111,210.01,209.96,0.69]
[1759108129249,2.24334111,210.01,209.97,0.69]
[1759108129441,2.24334111,210.01,209.95,36.52]
[1759108129656,2.24334111,210.01,209.97,4.76258513]
[1759108129961,2.24334111,210.01,209.97,5.45258513]
[1759108130137,2.24334111,210.01,209.97,4.76258513]
[1759108130350,2.24334111,210.01,209.97,5.45258513]
[1759108130875,1.52334111,210.01,209.98,0.71]
[1759108131073,26.0,210.02,209.98,0.71]
[1759108131655,26.71,210.02,209.99,4.76213153]
[1759108131854,0.71,210.02,209.99,4.76213153]
[1759108132882,0.71,210.01,209.97,4.762386]
[1759108133178,0.71,210.0,209.97,4.762386]
[1759108133354,6.28437415,210.04,209.97,4.762386]
[1759108133549,0.71,210.03,209.97,4.762386]
[1759108133777,0.71,210.02,209.97,4.762386]
[1759108133992,0.71,210.02,209.97,0.71]
[1759108134581,6.28437415,210.04,209.97,0.71]
[1759108134774,0.71,210.01,209.96,4.76281196]
[1759108135076,0.71,210.01,209.98,4.76235831]
[1759108136174,4.7612764,210.03,209.96,4.76261244]
[1759108136486,26.0,210.0,209.95,41.28302874]
[1759108136660,0.71,209.99,209.95,41.28302874]
[1759108136862,0.71,209.98,209.95,4.76302874]
[1759108137270,2.23334111,209.98,209.95,4.76302874]
[1759108137462,2.23334111,209.98,209.94,4.76325348]
[1759108137670,0.71,209.97,209.93,0.71]
[1759108138070,0.71,209.96,209.92,37.25]
[1759108138371,2.23334111,209.98,209.93,5.47346527]
[1759108141536,1.52334111,209.95,209.89,5.47431379]
[1759108141794,1.52334111,209.95,209.87,0.1]
[1759108141795,1.52334111,209.92,209.87,4.86465778]
[1759108142109,0.71,209.91,209.87,0.1]
[1759108142563,0.71,209.9,209.87,0.1]
[1759108143183,0.71,209.9,209.87,4.86480677]
[1759108144275,2.23334111,209.92,209.87,4.86480677]
[1759108144484,0.71,209.91,209.87,4.86480677]
[1759108145169,0.71,209.91,209.87,0.1]
[1759108145875,0.71,209.91,209.87,4.86484258]
[1759108146101,0.71,209.91,209.87,5.57484258]
[1759108147166,0.71,209.91,209.87,4.86484258]
[1759108148392,0.71,209.9,209.87,0.1]
[1759108149096,26.0,209.9,209.87,5.57480432]
[1759108149777,26.0,209.91,209.87,5.57480432]
[1759108150091,26.0,209.91,209.88,0.71]
[1759108150296,26.0,209.92,209.89,0.71]
[1759108150601,26.0,209.91,209.89,0.71]
[1759108151266,26.0,209.91,209.89,5.47431897]
[1759108153498,26.0,209.91,209.89,0.71]
[1759108153797,26.0,209.91,209.88,4.76449597]
[1759108153998,26.0,209.91,209.88,5.45449597]
[1759108156697,26.0,209.91,209.88,4.76449597]
[1759108156877,26.0,209.91,209.87,0.79]
[1759108157201,26.0,209.91,209.87,0.1]
[1759108157202,0.67,209.9,209.87,0.1]
[1759108157391,0.67,209.89,209.87,0.1]
[1759108158903,0.67,209.88,209.87,0.1]
[1759108159080,14.26559401,209.88,209.87,0.1]
[1759108161190,19.03022141,209.88,209.87,0.1]
[1759108163789,14.26559401,209.88,209.87,0.1]
[1759108163992,13.59559401,209.88,209.87,0.1]
[1759108172201,19.03022141,209.88,209.87,0.1]
[1759108172400,18.36022141,209.88,209.87,0.1]
[1759108172615,19.03022141,209.88,209.87,0.1]
[1759108173495,45.03022141,209.88,209.87,0.1]
[1759108173701,19.03022141,209.88,209.87,0.1]
[1759108174609,45.03022141,209.88,209.87,0.1]
[1759108174808,19.03022141,209.88,209.87,0.1]
[1759108177218,45.03022141,209.88,209.87,0.1]
[1759108177518,19.03022141,209.88,209.87,0.1]
[1759108177820,55.59022141,209.88,209.87,0.1]
[1759108181405,58.76424626,209.88,209.87,0.1]
[1759108181935,56.44356252,209.88,209.87,0.1]
[1759108182430,57.11356252,209.88,209.87,0.1]
[1759108183020,60.29022989,209.88,209.87,0.1]
[1759108183920,23.73022989,209.88,209.87,0.1]
[1759108184122,57.11356252,209.88,209.87,0.1]
[1759108184328,60.29022989,209.88,209.87,0.1]
[1759108185132,59.62022989,209.88,209.87,0.1]
[1759108186327,23.06022989,209.88,209.87,0.1]
[1759108186545,56.44356252,209.88,209.87,0.1]
[1759108186724,59.62022989,209.88,209.87,0.1]
[1759108187229,59.62022989,209.88,209.87,0.76]
[1759108187525,13.59559401,209.88,209.87,0.76]
[1759108188820,18.36022141,209.88,209.87,0.1]
[1759108189128,18.36022141,209.88,209.87,0.76]
[1759108189524,18.36022141,209.88,209.87,0.1]
[1759108189726,19.88356252,209.88,209.87,0.1]
[1759108190239,20.74394183,209.88,209.87,0.1]
[1759108191635,18.36022141,209.88,209.87,0.1]
[1759108191826,20.74394183,209.88,209.87,0.1]
[1759108192433,20.74394183,209.88,209.87,0.8]
[1759108193241,15.97931443,209.88,209.87,0.8]
[1759108193531,50.15559401,209.88,209.87,0.8]
[1759108193733,13.59559401,209.88,209.87,0.8]
[1759108196727,4.76344987,209.94,209.87,5.56485443]
[1759108196924,7.94791136,209.95,209.88,0.7]
[1759108197127,50.15559401,209.94,209.88,0.7]
[1759108197333,26.0,209.91,209.89,4.7644004]
[1759108197529,26.0,209.91,209.9,0.7]
[1759108198242,13.59559401,209.94,209.9,0.7]
[1759108198413,36.56,209.94,209.9,0.7]
[1759108198622,39.74472212,209.94,209.9,0.7]
[1759108199546,4.76256028,209.98,209.91,4.76394645]
[1759108199830,26.0,209.94,209.92,0.7]
[1759108200231,26.0,209.94,209.87,0.1]
[1759108200441,26.0,209.94,209.88,0.7]
[1759108200623,36.56,209.93,209.88,5.4646274]
[1759108200934,36.56,209.93,209.89,0.7]
[1759108201119,36.56,209.93,209.9,0.7]
[1759108201325,36.56,209.93,209.91,0.7]
[1759108201524,13.59559401,209.92,209.87,0.1]
[1759108201739,13.59559401,209.9,209.87,0.1]
[1759108202038,13.59559401,209.9,209.87,0.8]
[1759108202635,13.59559401,209.9,209.87,0.1]
[1759108203020,13.59559401,209.9,209.87,0.8]
[1759108203433,13.59559401,209.88,209.87,0.1]
[1759108203831,14.28559401,209.88,209.87,0.1]
[1759108205136,17.46966523,209.88,209.87,0.1]
[1759108205929,22.23429263,209.88,209.87,0.1]
[1759108208139,21.54429263,209.88,209.87,0.1]
[1759108208442,58.01394183,209.88,209.87,0.1]
[1759108208650,63.1097391,209.88,209.87,0.1]
[1759108210039,60.03601868,209.88,209.87,0.1]
[1759108210240,63.1097391,209.88,209.87,0.1]
[1759108210447,15.97931443,209.83,209.82,0.1]
[1759108210629,78.55931443,209.83,209.82,0.1]
[1759108210827,79.24931443,209.83,209.82,0.1]
[1759108211142,81.16131462,209.83,209.82,0.1]
[1759108211650,85.92707738,209.83,209.82,0.1]
[1759108212952,85.23707738,209.83,209.82,0.1]
[1759108216654,41.5075942,209.83,209.82,0.78]
[1759108216834,76.17559401,209.83,209.82,0.78]
[1759108217251,39.59559401,209.83,209.82,0.78]
[1759108217451,76.17559401,209.83,209.82,0.78]
[1759108219445,39.59559401,209.83,209.82,0.78]
[1759108222156,44.36135677,209.83,209.82,0.78]
[1759108223161,80.92135677,209.83,209.82,0.78]
[1759108223455,81.63135677,209.83,209.82,0.1]
[1759108223645,80.92135677,209.83,209.82,0.1]
[1759108223830,85.68816204,209.83,209.82,0.1]
[1759108224030,80.92135677,209.83,209.82,0.1]
[1759108224854,44.36135677,209.83,209.82,0.1]
[1759108225038,80.94135677,209.83,209.82,0.1]
[1759108227644,86.41870837,209.83,209.82,0.1]
[1759108230565,85.70870837,209.83,209.82,0.1]
[1759108231343,80.92135677,209.83,209.82,0.78]
[1759108231764,80.92135677,209.83,209.82,0.1]
[1759108235260,80.92135677,209.83,209.82,0.78]
[1759108235974,39.59559401,209.83,209.82,0.78]
[1759108236177,13.59559401,209.86,209.82,0.78]
[1759108236381,36.58,209.85,209.82,0.78]
[1759108237258,4.76441007,209.89,209.82,5.54598854]
[1759108237575,36.62,209.89,209.83,0.68]
[1759108238560,36.62,209.89,209.84,4.76553564]
[1759108238760,36.62,209.89,209.85,0.68]
[1759108239467,26.0,209.9,209.85,0.68]
[1759108239769,26.0,209.88,209.85,0.68]
[1759108240965,62.62,209.89,209.85,5.44529697]
[1759108241165,36.62,209.89,209.86,0.68]
[1759108241352,26.0,209.9,209.86,0.68]
[1759108241552,26.0,209.89,209.86,0.68]
[1759108241754,62.6,209.9,209.86,0.68]
[1759108242854,62.6,209.9,209.86,5.44486947]
[1759108243054,26.0,209.9,209.87,0.68]
[1759108245050,26.0,209.9,209.87,5.44469844]
[1759108245250,26.0,209.9,209.88,0.68]
[1759108246873,36.6,209.92,209.88,0.68]
[1759108247373,36.6,209.94,209.89,4.7644004]
[1759108247672,36.6,209.95,209.9,0.68]
[1759108249274,36.6,209.95,209.9,5.44407433]
[1759108249466,36.6,209.95,209.91,0.68]
[1759108249666,41.36314615,209.95,209.9,4.76407433]
[1759108249867,41.36314615,209.95,209.89,0.68]
[1759108249868,0.71,209.94,209.89,0.68]
[1759108250073,0.71,209.94,209.9,0.68]
[1759108251181,41.36314615,209.95,209.9,0.68]
[1759108251362,42.08314615,209.95,209.9,0.68]
[1759108251569,42.08314615,209.95,209.9,5.44416592]
[1759108251857,13.59559401,209.95,209.91,0.68]
[1759108252063,14.31559401,209.99,209.92,0.68]
[1759108252265,13.59559401,209.97,209.92,0.68]
[1759108252761,14.31559401,209.97,209.92,0.68]
[1759108253072,19.07818919,209.97,209.92,0.68]
[1759108253562,19.07818919,209.97,209.92,5.44368402]
[1759108254165,0.72,209.96,209.92,5.44368402]
[1759108254478,19.07818919,209.97,209.92,5.44368402]
[1759108254658,18.35818919,209.97,209.92,5.44368402]
[1759108254978,18.35818919,209.97,209.87,16.67699051]
[1759108255180,19.07818919,209.97,209.93,0.68]
[1759108255889,55.67818919,209.97,209.87,16.67699051]
[1759108256061,55.67818919,209.97,209.88,0.68]
[1759108256262,26.72,209.96,209.89,4.7644004]
[1759108256595,50.89559401,209.95,209.89,4.7644004]
[1759108256758,0.72,209.94,209.89,4.7644004]
[1759108256956,0.72,209.93,209.87,4.76485443]
[1759108257184,0.72,209.93,209.89,0.68]
[1759108257360,50.17559401,209.95,209.89,0.68]
[1759108257560,50.89559401,209.95,209.89,0.68]
[1759108257971,50.89559401,209.95,209.87,5.44485443]
[1759108258171,13.59559401,209.93,209.87,5.44485443]
[1759108258390,18.3591697,209.93,209.87,5.44485443]
[1759108258803,19.0791697,209.93,209.87,5.44485443]
[1759108258971,37.32,209.92,209.85,5.44508747]
[1759108259167,0.72,209.91,209.85,0.68]
[1759108260212,5.48397952,209.91,209.85,5.44527038]
[1759108260877,13.59559401,209.91,209.86,0.68]
[1759108261184,13.59559401,209.91,209.87,0.68]
[1759108261387,14.31559401,209.91,209.87,0.68]
[1759108261587,36.6,209.91,209.87,0.68]
[1759108261780,26.0,209.93,209.88,0.68]
[1759108261974,62.6,209.93,209.88,0.68]
[1759108262397,26.0,209.93,209.89,4.7644004]
[1759108262580,13.59559401,209.95,209.89,4.7644004]
[1759108262786,14.33109609,209.97,209.9,0.68]
[1759108262974,0.72,209.96,209.89,5.4444004]
[1759108263280,0.72,209.95,209.89,5.4444004]
[1759108264276,0.72,209.95,209.9,0.68]
[1759108264677,18.35854292,209.96,209.91,0.68]
[1759108264879,19.07854292,209.96,209.91,0.68]
[1759108265083,0.72,209.95,209.89,5.4444004]
[1759108266501,18.35854292,209.96,209.9,0.68]
[1759108267508,18.35854292,209.96,209.9,5.44407419]
[1759108267800,19.07854292,209.96,209.9,5.44407419]
[1759108267997,0.72,209.95,209.89,4.7643737]
[1759108268206,0.72,209.94,209.88,5.44461301]
[1759108268578,26.0,209.93,209.88,5.44461301]
[1759108268783,26.0,209.93,209.89,0.68]
[1759108269499,26.0,209.93,209.9,0.68]
[1759108270486,26.0,209.93,209.83,42.68016966]
[1759108270684,26.0,209.93,209.89,0.68]
[1759108271805,26.0,209.93,209.9,0.68]
[1759108272303,26.0,209.93,209.89,4.76429963]
[1759108272512,26.0,209.93,209.89,5.44429963]
[1759108272808,30.76350819,209.93,209.89,0.68]
[1759108272984,0.7,209.92,209.85,0.68]
[1759108274007,0.7,209.92,209.84,4.76553564]
[1759108274189,0.7,209.91,209.84,5.44553564]
[1759108274390,26.0,209.89,209.82,0.78]
[1759108274596,26.0,209.85,209.82,0.1]
[1759108274904,26.0,209.83,209.82,0.1]
[1759108276207,26.7,209.83,209.82,0.1]
[1759108277585,26.0,209.83,209.82,0.1]
[1759108278711,13.59559401,209.86,209.82,0.78]
[1759108278909,36.64,209.86,209.83,0.68]
[1759108279097,36.64,209.86,209.82,0.78]
[1759108279299,36.64,209.86,209.83,0.68]
[1759108279808,36.64,209.86,209.82,0.1]
[1759108280008,31.46491782,209.87,209.82,0.78]
[1759108280203,62.64,209.87,209.83,0.68]
[1759108280420,26.0,209.85,209.84,0.68]
[1759108280601,36.64,209.87,209.84,0.68]
[1759108281002,1.52420379,209.89,209.84,4.76545899]
[1759108281210,62.64,209.89,209.85,0.68]
[1759108281398,63.34,209.89,209.84,4.76545899]
[1759108281598,62.64,209.89,209.85,0.68]
[1759108281803,26.0,209.89,209.86,0.68]
[1759108282801,26.7,209.89,209.84,4.76545899]
[1759108283007,26.0,209.89,209.85,0.68]
[1759108283599,26.7,209.89,209.85,0.68]
[1759108283805,26.0,209.89,209.86,0.68]
[1759108284305,26.0,209.89,209.82,12.01487008]
[1759108284500,13.59559401,209.94,209.87,0.68]
[1759108284812,0.7,209.93,209.87,0.68]
[1759108284997,26.0,209.92,209.87,0.68]
[1759108285317,26.0,209.92,209.88,5.4446274]
[1759108285509,26.0,209.92,209.89,0.68]
[1759108285706,0.7,209.93,209.89,0.68]
[1759108285905,0.7,209.93,209.88,4.7646274]
[1759108286109,0.7,209.93,209.88,5.4446274]
[1759108286798,37.36,209.92,209.84,0.68]
[1759108286995,26.0,209.89,209.83,5.44576276]
[1759108287196,30.76452757,209.89,209.83,5.44576276]
[1759108287506,26.0,209.89,209.83,5.44576276]
[1759108288714,23.92324812,209.93,209.83,5.44576276]
[1759108288715,0.7,209.97,209.86,1.52420379]
[1759108288925,13.59559401,209.96,209.87,0.68]
[1759108289220,13.59559401,209.96,209.88,4.7646274]
[1759108289417,13.59559401,209.96,209.89,0.68]
[1759108290118,50.35559401,209.96,209.89,0.68]
[1759108290325,13.59559401,209.99,209.89,0.68]
[1759108290618,36.76,209.97,209.89,0.68]
[1759108291419,26.0,209.96,209.9,16.67460694]
[1759108291646,36.76,209.97,209.91,0.68]
[1759108292507,36.76,209.97,209.92,4.76371951]
[1759108292709,36.76,209.97,209.92,5.44371951]
[1759108293424,36.76,209.97,209.93,0.68]
[1759108295105,36.76,209.97,209.94,4.76326569]
[1759108295502,14.29559401,209.99,209.94,4.76326569]
[1759108295825,0.7,209.98,209.94,4.76326569]
[1759108296003,36.74,209.99,209.95,0.68]
[1759108297311,62.72,210.01,209.96,5.44281196]
[1759108298022,0.7,210.0,209.96,4.76281196]
[1759108298197,0.7,209.99,209.94,16.67129083]
[1759108298397,0.7,209.99,209.94,17.35129083]
[1759108298608,0.7,209.99,209.94,16.67129083]
[1759108298923,0.7,209.99,209.95,0.68]
[1759108299525,0.7,209.99,209.96,4.76281196]
[1759108299724,0.7,209.98,209.94,4.76304263]
[1759108300023,0.7,210.0,209.94,5.44304263]
[1759108304717,0.7,210.0,209.95,0.68]
[1759108304921,67.48174175,210.01,209.96,0.68]
[1759108305308,0.7,210.0,209.96,0.68]
[1759108305702,0.7,210.0,209.96,5.44279139]
[1759108306431,0.7,209.99,209.94,0.68]
[1759108306661,13.59559401,210.0,209.95,0.68]
[1759108306804,14.29559401,210.0,209.95,0.68]
[1759108307004,26.0,209.99,209.96,0.68]
[1759108307502,26.0,209.99,209.97,0.68]
[1759108307727,18.35684203,210.03,209.91,18.19796386]
[1759108307728,26.0,210.0,209.98,0.68]
[1759108307928,26.0,210.0,209.98,5.44220529]
[1759108308132,36.7,210.02,209.98,4.76220529]
[1759108308424,36.7,210.02,209.99,0.68]
[1759108309420,36.7,210.02,209.98,4.76220529]
[1759108309609,36.7,210.02,209.98,5.44220529]
[1759108310246,14.29559401,210.01,209.93,0.68]
[1759108310710,26.0,209.98,209.93,0.68]
[1759108310906,26.7,209.98,209.93,0.68]
[1759108311109,26.7,209.98,209.93,5.44349259]
[1759108311505,26.7,209.98,209.94,0.71]
[1759108311833,26.0,209.98,209.94,0.71]
[1759108312732,26.0,209.98,209.92,11.90902812]
[1759108312733,26.0,209.98,209.95,0.71]
[1759108313137,11.90902812,210.03,209.92,11.90902812]
[1759108313314,0.7,210.03,209.96,0.71]
[1759108313512,37.4,210.03,209.96,0.71]
[1759108313742,37.4,210.03,209.97,4.76258513]
[1759108313943,37.4,210.03,209.98,0.71]
[1759108314240,36.7,210.03,209.99,0.71]
[1759108314423,37.4,210.03,209.99,0.71]
[1759108316438,37.4,210.03,209.99,5.47196885]
[1759108316639,36.7,210.03,209.99,5.47196885]
[1759108317716,158.8,210.04,209.99,5.47196885]
[1759108317915,159.5,210.04,209.99,5.47196885]
[1759108318620,196.18,210.04,209.99,5.47196885]
[1759108318850,63.38,210.04,209.99,5.47196885]
[1759108320824,26.0,210.04,210.0,0.71]
[1759108321024,26.0,210.04,210.01,0.71]
[1759108322038,26.0,210.04,210.02,4.76145129]
[1759108322329,26.0,210.04,210.01,0.71]
[1759108322831,26.0,210.04,210.01,5.47155215]
[1759108323746,26.0,210.04,209.99,5.47194203]
[1759108323927,0.7,210.03,209.99,5.47194203]
[1759108324245,26.0,210.04,209.99,5.47194203]
[1759108324641,26.7,210.04,209.99,5.47194203]
[1759108325044,0.7,210.03,209.99,5.47194203]
[1759108325241,0.7,210.03,209.99,4.76194203]
[1759108325449,26.0,210.04,210.0,0.71]
[1759108325637,26.0,210.04,209.99,16.66727085]
[1759108325838,26.0,210.04,210.0,0.71]
[1759108326034,26.0,210.04,210.01,4.76167801]
[1759108326346,26.0,210.04,210.02,0.71]
[1759108326529,26.0,210.04,210.01,4.76167801]
[1759108326728,26.0,210.04,210.01,5.47167801]
[1759108327567,26.7,210.04,210.01,4.76167801]
[1759108328355,26.7,210.04,210.0,4.76190476]
[1759108328536,26.7,210.04,210.0,5.47190476]
[1759108329732,26.0,210.04,210.0,5.47190476]
[1759108330230,26.7,210.04,210.0,5.47190476]
[1759108335866,26.0,210.04,209.99,4.7621211]
[1759108336050,0.66,210.03,209.99,4.7621211]
[1759108336469,0.66,210.03,209.99,5.4621211]
[1759108336973,26.0,210.04,210.0,0.7]
[1759108337265,26.0,210.04,210.01,0.7]
[1759108337434,26.66,210.04,209.99,5.4621211]
[1759108337635,26.66,210.04,210.0,0.7]
[1759108337831,26.66,210.04,209.98,4.76235831]
[1759108338044,26.66,210.04,209.99,0.7]
[1759108338260,26.66,210.04,210.0,0.7]
[1759108338764,26.0,210.04,210.0,0.7]
[1759108339345,26.0,210.04,210.01,0.7]
[1759108339567,26.66,210.04,210.0,4.76190476]
[1759108339758,26.66,210.04,210.0,5.46190476]
[1759108342467,26.0,210.04,209.98,16.6682541]
[1759108342676,26.0,210.04,210.01,0.68]
[1759108343046,26.0,210.04,210.0,0.68]
[1759108343252,26.71,210.04,210.0,0.68]
[1759108343466,26.71,210.04,210.01,4.76167801]
[1759108343670,26.0,210.04,210.01,5.44167801]
[1759108344197,26.71,210.04,210.01,4.76167801]
[1759108345377,26.71,210.04,210.0,0.68]
[1759108347160,26.71,210.04,210.0,5.44174704]
[1759108349276,26.0,210.04,210.01,0.68]
[1759108350270,26.0,210.04,210.01,4.76152744]
[1759108350448,26.71,210.04,210.01,4.76152744]
[1759108350949,26.0,210.04,210.01,4.76152744]
[1759108351150,26.0,210.04,210.01,5.44152744]
[1759108352359,26.0,210.04,210.01,0.68]
[1759108352560,26.71,210.04,209.98,11.90589579]
[1759108352758,26.71,210.04,209.99,0.68]
[1759108352964,26.71,210.04,210.0,0.68]
[1759108353868,26.0,210.04,209.98,11.90589579]
[1759108354053,26.0,210.04,210.01,0.68]
[1759108354454,26.0,210.04,210.02,4.76145129]
[1759108355369,0.2,210.08,210.03,0.68]
[1759108356491,0.2,210.08,210.04,16.66349266]
[1759108356784,0.2,210.08,210.05,0.68]
[1759108358459,0.2,210.08,210.06,4.7605446]
[1759108358777,0.2,210.08,210.07,0.68]
[1759108359683,0.91,210.08,210.06,4.7605446]
[1759108359861,0.2,210.08,210.06,4.7605446]
[1759108360553,1e-08,210.1,210.07,0.68]
[1759108362659,1e-08,210.1,210.08,4.76009139]
[1759108363456,1e-08,210.1,210.09,0.68]
[1759108363763,1e-08,210.1,210.08,4.76009139]
[1759108364357,1e-08,210.1,210.09,0.68]
[1759108364960,1e-08,210.1,210.09,5.43986481]
[1759108365168,1e-08,210.1,210.09,4.75986481]
[1759108366781,0.71000001,210.1,210.05,0.68]
[1759108366985,0.71000001,210.1,210.04,4.7609979]
[1759108367180,0.71,210.09,210.04,4.7609979]
[1759108367371,0.71,210.09,210.05,0.68]
[1759108368685,1e-08,210.1,210.05,0.68]
[1759108368859,0.71000001,210.1,210.05,0.68]
[1759108369282,1e-08,210.1,210.06,4.7605446]
[1759108369481,0.71,210.09,210.06,4.7605446]
[1759108369783,1e-08,210.1,210.06,4.7605446]
[1759108369977,1e-08,210.1,210.06,5.4405446]
[1759108369978,0.71000001,210.1,210.06,5.4405446]
[1759108370180,1e-08,210.1,210.06,4.7605446]
[1759108370485,0.71000001,210.1,210.06,5.4405446]
[1759108370779,0.70000001,210.1,210.04,0.71]
[1759108370970,0.7,210.09,210.04,0.71]
[1759108371172,0.7,210.09,210.05,0.71]
[1759108371373,1e-08,210.1,210.06,0.71]
[1759108371673,1e-08,210.1,210.03,11.90269014]
[1759108371876,0.70000001,210.1,210.04,0.71]
[1759108374301,0.70000001,210.1,210.05,4.76077124]
[1759108374584,0.70000001,210.1,210.05,5.47077124]
[1759108374992,0.70000001,210.1,210.05,4.76077124]
[1759108375282,0.70000001,210.1,210.06,0.71]
[1759108376480,0.70000001,210.1,210.06,5.47041983]
[1759108379384,1e-08,210.1,210.06,5.47041983]
[1759108380373,0.70000001,210.1,210.06,5.47041983]
[1759108380568,1e-08,210.1,210.03,11.90269014]
[1759108380773,1e-08,210.1,210.04,0.71]
[1759108380988,26.7,210.09,210.02,4.76145129]
[1759108381175,26.0,210.09,210.03,0.71]
[1759108382489,26.0,210.09,210.04,4.7609979]
[1759108382691,26.0,210.09,210.05,0.71]
[1759108383206,26.0,210.09,210.06,0.71]
[1759108383609,0.7,210.08,210.01,36.64]
[1759108383895,26.0,210.04,209.93,36.7]
[1759108384088,26.0,210.03,209.98,0.71]
[1759108384485,0.7,210.02,209.96,0.71]
[1759108384799,5.46150185,210.02,209.96,0.71]
[1759108385284,5.46150185,210.02,209.94,4.76324384]
[1759108385480,26.0,209.98,209.91,0.71]
[1759108385696,26.7,209.98,209.91,0.71]
[1759108385904,26.7,209.98,209.91,17.38381258]
[1759108386077,26.7,209.98,209.92,0.71]
[1759108386275,11.90223176,210.05,209.92,0.71]
[1759108386478,63.44,210.04,209.93,16.67222407]
[1759108386722,36.74,210.03,209.94,0.71]
[1759108387684,36.74,210.03,209.95,16.67063585]
[1759108388014,26.7,210.04,209.96,0.71]
[1759108388173,36.76,210.03,209.96,0.71]
[1759108388808,37.46,210.03,209.96,0.71]
[1759108389171,36.76,210.03,209.96,0.71]
[1759108389372,62.74,210.04,209.96,0.71]
[1759108389599,26.0,210.04,209.96,0.71]
[1759108389804,62.74,210.04,209.97,16.66904795]
[1759108389989,62.74,210.04,209.98,0.71]
[1759108390295,62.76,210.04,209.98,0.71]
[1759108390672,26.0,210.04,209.98,0.71]
[1759108390878,26.0,210.04,209.99,4.76213153]
[1759108391287,26.7,210.04,209.99,5.47213153]
[1759108391799,26.0,210.04,209.99,4.76213153]
[1759108392005,0.66,210.03,209.97,4.76246613]
[1759108392183,0.66,210.02,209.97,4.76246613]
[1759108392498,0.66,210.01,209.97,4.76246613]
[1759108394402,0.66,210.01,209.97,0.72]
[1759108395105,19.01689401,210.03,209.97,0.72]
[1759108395285,14.25559401,210.03,209.97,0.72]
[1759108396002,26.0,210.04,209.97,0.72]
[1759108396196,0.66,210.08,209.97,0.72]
[1759108396398,36.76,210.08,209.98,16.6682541]
[1759108396595,36.76,210.08,209.99,0.72]
[1759108396902,26.0,210.07,209.99,0.72]
[1759108397290,36.76,210.08,209.99,0.72]
[1759108397291,0.66,210.09,209.99,0.72]
[1759108397607,36.74000001,210.1,209.99,0.72]
[1759108397900,0.66,210.09,209.99,0.72]
[1759108398407,5.41991438,210.09,210.0,4.76190476]
[1759108398598,4.75991438,210.09,210.0,4.76190476]